bitfinex-derivatives/quotes_SOLF0:USTF0_20250416
["timestamp","ask_amount","ask_price","bid_price","bid_amount"]
[1744816409318,32.88,128.16,128.09,35.53610366]
[1744816409509,32.88,128.17,128.09,35.53610366]
[1744816409716,32.88,128.17,128.15,7.8034]
[1744816409913,32.93807254,128.17,128.15,0.05155126]
[1744816410114,62.3508762,128.17,128.15,0.05155126]
[1744816410313,7.8033,128.16,128.15,0.05155126]
[1744816410813,62.3508762,128.17,128.15,0.05155126]
[1744816411313,32.93807254,128.17,128.15,0.05155126]
[1744816411518,0.05807254,128.17,128.15,0.05155126]
[1744816411919,0.05807254,128.17,128.16,7.8033]
[1744816413422,32.84,128.2,128.15,0.05155126]
[1744816413423,32.84,128.2,128.19,7.8015]
[1744816414117,590.75280366,128.25,128.22,7.7993]
[1744816414319,32.84,128.23,128.22,7.7993]
[1744816414824,32.84,128.23,128.21,0.05106495]
[1744816414825,32.84,128.23,128.21,7.85106495]
[1744816415024,32.84,128.23,128.21,0.05106495]
[1744816415325,32.84,128.23,128.22,7.7997]
[1744816417529,32.84,128.23,128.21,7.85106495]
[1744816417721,32.84,128.23,128.21,0.05106495]
[1744816418126,32.84,128.23,128.22,7.7997]
[1744816418524,32.84,128.23,128.21,7.85096495]
[1744816418730,32.84,128.23,128.21,0.05106495]
[1744816419530,40.6394,128.23,128.21,0.05106495]
[1744816419831,32.84,128.23,128.21,0.05106495]
[1744816420132,32.84,128.23,128.22,7.7997]
[1744816420928,0.05743999,128.24,128.23,7.7991]
[1744816423134,0.05743999,128.24,128.22,7.7994]
[1744816423334,7.85643999,128.24,128.21,0.05106495]
[1744816423537,0.05743999,128.24,128.21,0.05106495]
[1744816423829,0.05743999,128.24,128.22,7.7996]
[1744816424029,0.05743999,128.24,128.21,0.05106495]
[1744816424833,7.7997,128.22,128.21,0.05106495]
[1744816425236,0.05743999,128.24,128.21,0.05106495]
[1744816425735,7.85633999,128.24,128.21,7.85106495]
[1744816426033,0.05743999,128.24,128.21,0.05106495]
[1744816426336,32.84,128.23,128.22,7.7993]
[1744816426736,32.84,128.23,128.21,0.05106495]
[1744816426931,62.25280366,128.23,128.21,0.05106495]
[1744816427137,62.25280366,128.23,128.16,2.0757]
[1744816427334,37.21340366,128.21,128.18,7.802]
[1744816427529,7.8006,128.21,128.18,7.802]
[1744816427729,62.25280366,128.23,128.16,2.0757]
[1744816428239,0.05508966,128.21,128.18,0.05154671]
[1744816428440,0.05508966,128.21,128.19,7.8015]
[1744816429135,0.05508966,128.21,128.18,0.05154671]
[1744816429530,0.05508966,128.21,128.18,7.85334671]
[1744816429735,7.85578966,128.21,128.18,7.85334671]
[1744816430645,7.8011,128.2,128.18,0.05154671]
[1744816430846,32.84,128.19,128.18,0.05154671]
[1744816431346,32.84,128.19,128.18,7.85364671]
[1744816431645,32.84,128.19,128.18,0.05154671]
[1744816432239,40.6415,128.19,128.18,0.05154671]
[1744816432439,62.25280366,128.19,128.13,2.1989]
[1744816432645,29.41280366,128.17,128.13,2.1989]
[1744816432843,37.21580366,128.17,128.14,7.8042]
[1744816433343,37.21580366,128.17,128.13,2.1989]
[1744816433344,7.8038,128.16,128.13,7.8048]
[1744816433548,62.25280366,128.15,128.1,2.0436]
[1744816434044,7.805,128.14,128.11,7.806]
[1744816434442,32.84,128.15,128.1,2.0436]
[1744816434642,0.05015764,128.14,128.13,7.8047]
[1744816440645,32.82,128.2,128.16,7.8033]
[1744816441040,29.41280366,128.17,128.12,7.8055]
[1744816441238,29.41280366,128.15,128.1,2.0436]
[1744816441545,37.21700366,128.15,128.11,7.806]
[1744816441850,0.05854437,128.14,128.11,7.85796141]
[1744816442051,0.05854437,128.14,128.11,0.05196141]
[1744816442648,0.05854437,128.14,128.13,7.8051]
[1744816443548,0.05854437,128.14,128.12,7.8055]
[1744816443851,0.05854437,128.14,128.11,0.05196141]
[1744816444653,7.86304437,128.14,128.11,7.85796141]
[1744816444850,0.05854437,128.14,128.11,0.05196141]
[1744816445150,7.86314437,128.14,128.11,7.85786141]
[1744816445352,0.05854437,128.14,128.11,0.05196141]
[1744816445555,29.41280366,128.13,128.09,2.1725]
[1744816445853,29.41280366,128.11,128.09,2.1725]
[1744816446047,29.41280366,128.11,128.1,7.8065]
[1744816446350,29.41280366,128.11,128.0,32.82]
[1744816446551,29.41280366,128.08,128.02,4.1791]
[1744816446747,0.05231449,128.07,128.04,0.05907188]
[1744816447052,0.05231449,128.07,128.06,7.8094]
[1744816450955,32.84,128.1,128.04,0.05907188]
[1744816451155,40.6453,128.13,128.04,32.89907188]
[1744816451355,40.6453,128.13,128.04,32.84]
[1744816451556,32.84,128.12,128.04,32.84]
[1744816451854,0.05723826,128.09,128.07,0.05255062]
[1744816452244,0.05723826,128.09,128.08,7.8082]
[1744816453253,32.84,128.14,128.08,4.1475]
[1744816453757,32.84,128.14,128.12,7.8055]
[1744816454155,32.89608502,128.14,128.12,7.85553099]
[1744816455257,32.89608502,128.14,128.13,7.8051]
[1744816455557,32.89608502,128.14,128.12,0.05003099]
[1744816455751,32.89608502,128.14,128.12,7.85543099]
[1744816455952,32.89608502,128.14,128.12,0.05003099]
[1744816456659,40.70108502,128.14,128.12,0.05003099]
[1744816457054,32.89608502,128.14,128.12,0.05003099]
[1744816458259,40.70088502,128.14,128.12,0.05003099]
[1744816458955,32.89608502,128.14,128.12,0.05003099]
[1744816459161,51.31727107,128.14,128.12,0.05003099]
[1744816459660,59.12207107,128.14,128.12,0.05003099]
[1744816460261,7.8051,128.13,128.12,0.05003099]
[1744816460458,51.31727107,128.14,128.12,0.05003099]
[1744816460967,7.8051,128.13,128.12,0.05003099]
[1744816461363,51.31727107,128.14,128.04,362.0]
[1744816461551,18.42118605,128.09,128.03,6.2368]
[1744816461755,32.84,128.09,128.03,6.2368]
[1744816462057,32.84,128.09,128.08,7.8082]
[1744816462260,32.84,128.09,128.03,6.2368]
[1744816462457,18.47560322,128.07,128.05,0.05135703]
[1744816463359,7.8094,128.06,128.05,0.05135703]
[1744816463563,18.47560322,128.07,127.99,6.3664]
[1744816463757,18.42118605,128.03,128.0,7.8127]
[1744816463957,51.26118605,128.03,127.99,4.35]
[1744816464757,2.262e-05,128.02,128.0,0.05808389]
[1744816464961,51.26118605,128.09,128.0,18.42118605]
[1744816465157,40.6482,128.08,128.05,7.8096]
[1744816465655,70.14659977,128.08,127.99,62.33839977]
[1744816465861,0.05027742,128.05,128.02,0.05988626]
[1744816467364,0.05027742,128.05,128.04,7.8106]
[1744816467866,32.84,128.08,128.07,7.8088]
[1744816468760,32.84,128.08,128.06,7.8091]
[1744816468957,32.84,128.08,128.06,7.85903648]
[1744816469463,62.33839977,128.08,128.06,0.04993648]
[1744816469865,7.8088,128.07,128.06,0.04993648]
[1744816471367,40.6485,128.08,128.06,0.04993648]
[1744816472668,7.8088,128.07,128.06,0.04993648]
[1744816474065,7.8088,128.07,128.02,7.8114]
[1744816474272,62.33839977,128.08,128.02,7.8114]
[1744816474473,32.8,128.07,128.02,29.49839977]
[1744816474871,32.8,128.07,128.04,7.8104]
[1744816475070,32.8,128.07,128.0,29.49839977]
[1744816475272,0.05758691,128.05,128.02,0.05473969]
[1744816475471,0.05758691,128.05,128.03,7.8112]
[1744816475668,0.05758691,128.05,128.02,0.05473969]
[1744816476071,0.05758691,128.05,128.02,7.86623969]
[1744816476974,7.86808691,128.05,128.02,0.05473969]
[1744816477174,0.05758691,128.05,128.02,0.05473969]
[1744816477472,7.86798691,128.05,128.02,0.05473969]
[1744816478270,7.8107,128.04,128.02,0.05473969]
[1744816478473,32.82,128.03,128.02,0.05473969]
[1744816479474,40.6312,128.03,128.02,0.05473969]
[1744816479973,32.82,128.03,128.02,0.05473969]
[1744816480771,40.6312,128.03,128.02,0.05473969]
[1744816480974,32.82,128.03,128.02,0.05473969]
[1744816481272,32.82,128.03,128.02,7.86663969]
[1744816481573,0.05758691,128.05,128.02,0.05473969]
[1744816481773,32.87758691,128.05,128.02,0.05473969]
[1744816482373,32.87758691,128.05,128.02,7.86613969]
[1744816482677,32.87758691,128.05,128.02,0.05473969]
[1744816482878,32.87758691,128.05,128.03,7.8109]
[1744816483073,32.87758691,128.05,128.02,0.05473969]
[1744816483574,32.87758691,128.05,128.04,7.8106]
[1744816486682,2.1055,128.11,128.03,18.43771313]
[1744816486877,32.82,128.1,128.05,18.43771313]
[1744816487180,32.82,128.1,128.07,18.43771313]
[1744816487376,32.82,128.1,128.04,2.1269]
[1744816487377,32.82,128.1,128.0,362.0]
[1744816487584,32.82,128.1,128.06,18.43771313]
[1744816487781,0.05392674,128.09,128.07,0.05598293]
[1744816488284,0.05392674,128.09,128.08,7.8082]
[1744816488586,0.05392674,128.09,128.08,26.24591313]
[1744816488887,32.82,128.14,128.08,18.43771313]
[1744816489185,32.82,128.14,128.08,2.1413]
[1744816489382,40.6248,128.14,128.11,7.8062]
[1744816490081,40.67970848,128.14,128.11,7.85673494]
[1744816490985,7.8052,128.13,128.11,0.05053494]
[1744816491186,32.87490848,128.14,128.11,0.05053494]
[1744816491485,40.67970848,128.14,128.11,7.85673494]
[1744816491982,7.8054,128.13,128.11,0.05053494]
[1744816492188,62.33733571,128.14,128.11,0.05053494]
[1744816492788,29.46242723,128.12,128.03,2.0987]
[1744816492977,29.46242723,128.12,128.06,7.8091]
[1744816493183,29.46242723,128.1,128.06,7.8091]
[1744816493485,32.82,128.09,128.06,7.8091]
[1744816493680,32.87152692,128.09,128.06,0.04986166]
[1744816494086,32.87152692,128.09,128.08,7.8082]
[1744816495486,32.87152692,128.09,128.06,0.04986166]
[1744816496189,7.8084,128.08,128.06,0.04986166]
[1744816496390,32.87152692,128.09,128.06,0.04986166]
[1744816496592,40.67942692,128.09,128.06,0.04986166]
[1744816497293,40.67942692,128.09,128.06,7.85916166]
[1744816497792,7.8082,128.08,128.06,0.04986166]
[1744816498387,32.87152692,128.09,128.06,0.04986166]
[1744816499085,32.87152692,128.09,128.07,7.8085]
[1744816499289,32.87152692,128.09,128.06,0.04986166]
[1744816500397,0.05152692,128.09,128.06,29.51228889]
[1744816500583,32.82,128.12,128.07,2.0065]
[1744816500787,32.82,128.12,128.09,7.8073]
[1744816500989,32.82,128.12,128.07,2.0065]
[1744816501689,29.46242723,128.09,128.03,4.1539]
[1744816501889,32.78,128.08,128.03,4.1539]
[1744816502089,40.5883,128.08,128.05,7.81]
[1744816502592,32.78,128.08,128.05,7.81]
[1744816502792,32.83356312,128.08,128.05,0.05884783]
[1744816503187,7.8092,128.07,128.05,0.05884783]
[1744816503392,32.83356312,128.08,128.05,0.05884783]
[1744816504098,40.64206312,128.08,128.05,0.05884783]
[1744816504295,32.83356312,128.08,128.05,0.05884783]
[1744816504799,40.64176312,128.08,128.05,7.86854783]
[1744816505599,32.83356312,128.08,128.05,7.86854783]
[1744816507298,40.64186312,128.08,128.05,7.86854783]
[1744816507905,32.83356312,128.08,128.06,7.8092]
[1744816508202,32.83356312,128.08,128.05,0.05884783]
[1744816508398,7.8089,128.07,128.05,0.05884783]
[1744816508595,29.46242723,128.07,128.05,0.05884783]
[1744816508799,32.83356312,128.08,128.05,0.05884783]
[1744816509603,32.83356312,128.08,128.07,7.8088]
[1744816509803,32.83356312,128.08,128.05,0.05884783]
[1744816510800,32.83356312,128.08,128.07,7.8088]
[1744816511396,32.78,128.12,128.11,7.8062]
[1744816513597,32.78,128.12,128.1,0.04980664]
[1744816513799,51.21000274,128.12,128.1,0.04980664]
[1744816514798,59.01600274,128.12,128.1,0.04980664]
[1744816516504,51.21000274,128.12,128.1,0.04980664]
[1744816517001,51.21000274,128.12,128.1,7.85670664]
[1744816518710,32.78,128.12,128.11,7.8064]
[1744816520509,0.05262128,128.13,128.12,7.8058]
[1744816520711,0.05262128,128.13,128.1,0.04980664]
[1744816520907,18.43000274,128.11,128.1,0.04980664]
[1744816521312,18.43000274,128.11,128.06,4.1881]
[1744816521515,18.43000274,128.08,128.06,7.8091]
[1744816521811,51.19000274,128.08,128.03,363.9943]
[1744816522211,51.19000274,128.08,128.05,7.8099]
[1744816522406,51.2396785,128.08,128.05,7.86190326]
[1744816526711,18.43000274,128.06,128.03,7.8109]
[1744816527013,18.43000274,128.06,127.99,18.43000274]
[1744816527215,18.43000274,128.06,128.05,7.81]
[1744816527614,51.21000274,128.07,128.05,7.81]
[1744816527817,32.83152743,128.07,128.06,7.8094]
[1744816531319,51.26153017,128.07,128.05,0.05435862]
[1744816531913,51.26153017,128.07,127.98,38.9126]
[1744816532112,18.43000274,128.04,127.98,38.9126]
[1744816532318,18.43000274,128.04,128.02,7.8114]
[1744816532617,18.43000274,128.04,127.98,38.9126]
[1744816532816,18.43000274,128.04,128.03,7.8112]
[1744816533015,18.43000274,128.06,128.03,7.8112]
[1744816533315,18.43000274,128.06,128.03,0.05414188]
[1744816533316,0.0550267,128.05,128.03,0.05414188]
[1744816534515,18.43000274,128.04,128.03,0.05414188]
[1744816535117,18.43000274,128.04,127.98,4.0473]
[1744816535316,18.43000274,128.02,127.98,4.0473]
[1744816536218,0.05393268,128.01,127.99,0.05638787]
[1744816536413,0.05393268,128.01,128.0,7.8131]
[1744816538125,0.05393268,128.01,127.99,0.05638787]
[1744816539020,18.43000274,128.0,127.99,0.05638787]
[1744816540930,18.43000274,128.0,127.94,2.0276]
[1744816541228,18.43000274,127.97,127.94,2.0276]
[1744816541424,18.43000274,127.95,127.92,362.0]
[1744816541622,32.74,127.94,127.91,2.1691]
[1744816541822,18.43000274,127.93,127.87,1.9858]
[1744816542018,18.43000274,127.91,127.87,1.9858]
[1744816542326,0.04988117,127.91,127.89,0.05040492]
[1744816542527,0.04988117,127.91,127.9,7.8192]
[1744816543024,32.74,127.98,127.9,26.25000274]
[1744816543230,32.74,127.98,127.92,18.43000274]
[1744816543722,32.74,127.98,127.97,7.8149]
[1744816547530,0.05784216,127.99,127.96,0.05013548]
[1744816547832,32.76,128.05,127.96,62.34168256]
[1744816548032,32.76,128.05,127.96,62.29154708]
[1744816548232,40.5705,128.05,128.01,7.8121]
[1744816548625,40.5705,128.05,127.96,62.29154708]
[1744816548830,0.05524883,128.04,127.96,62.29154708]
[1744816549031,0.05601718,128.01,127.99,0.05811494]
[1744816549234,0.05601718,128.01,128.0,7.8126]
[1744816551833,0.05601718,128.01,127.99,7.87151494]
[1744816552132,32.81601718,128.01,127.99,7.87151494]
[1744816552532,32.81601718,128.01,127.99,0.05811494]
[1744816553335,29.53154708,128.0,127.94,2.1917]
[1744816553736,37.34514708,128.0,127.95,7.8159]
[1744816553938,29.53154708,128.0,127.95,7.8159]
[1744816554142,29.53154708,128.0,127.94,2.1917]
[1744816554343,29.53154708,128.04,127.94,2.1917]
[1744816554539,0.0582723,127.98,127.96,0.05297605]
[1744816554845,31.56614708,128.06,127.96,29.58695042]
[1744816555039,32.76,128.05,127.96,29.53154708]
[1744816555343,32.76,128.05,127.98,29.53154708]
[1744816555844,0.05542979,128.03,128.01,7.8124]
[1744816556436,0.05542979,128.03,128.0,0.05929365]
[1744816556437,0.05542979,128.03,128.0,7.87219365]
[1744816556636,0.05542979,128.03,128.0,0.05929365]
[1744816558040,7.86672979,128.03,128.0,0.05929365]
[1744816558241,0.05542979,128.03,128.0,0.05929365]
[1744816558442,7.86712979,128.03,128.0,0.05929365]
[1744816559445,0.05542979,128.03,128.0,0.05929365]
[1744816561144,0.05542979,128.03,128.02,7.8119]
[1744816561942,0.05542979,128.03,128.0,0.05929365]
[1744816562136,7.86702979,128.03,128.0,0.05929365]
[1744816562343,29.53154708,128.02,128.0,0.05929365]
[1744816562641,32.72,128.01,128.0,0.05929365]
[1744816562837,32.72,128.01,127.92,407.16674708]
[1744816562838,32.72,128.01,127.92,362.0]
[1744816563043,34.7489,128.01,127.92,362.0]
[1744816563446,7.8134,128.0,127.95,7.8156]
[1744816563746,7.8134,128.0,127.92,362.0]
[1744816563942,7.8149,127.97,127.96,0.05492202]
[1744816564142,32.72,127.97,127.91,4.0555]
[1744816565143,40.5352,127.97,127.93,7.8171]
[1744816565344,0.05283085,127.95,127.93,7.86673681]
[1744816565646,0.05283085,127.95,127.93,0.04963681]
[1744816566147,0.05283085,127.95,127.94,7.8167]
[1744816566347,32.72,127.99,127.93,0.04963681]
[1744816566546,32.72,127.99,127.93,29.58118389]
[1744816566749,32.72,127.99,127.94,2.1757]
[1744816567142,32.72,127.99,127.97,7.8145]
[1744816567548,32.7791564,127.99,127.97,7.86868203]
[1744816567748,32.72,128.01,127.97,0.05418203]
[1744816568247,32.72,128.01,127.97,7.86878203]
[1744816568447,62.25154708,128.01,127.97,7.86878203]
[1744816568642,62.25154708,128.01,127.97,0.05418203]
[1744816568843,7.87258704,128.0,127.97,0.05418203]
[1744816569142,0.05918704,128.0,127.97,0.05418203]
[1744816569350,7.8137,127.99,127.97,0.05418203]
[1744816569647,0.05918704,128.0,127.97,0.05418203]
[1744816569847,29.53154708,127.99,127.97,0.05418203]
[1744816570049,29.53154708,127.99,127.91,366.0555]
[1744816570252,29.53154708,127.97,127.91,4.0555]
[1744816570544,29.53154708,127.93,127.82,77.89924708]
[1744816570750,29.53154708,127.93,127.8,924.62]
[1744816570751,29.53154708,127.89,127.84,2.1472]
[1744816570951,32.72,127.88,127.84,2.1472]
[1744816571249,32.77281922,127.88,127.85,0.05433521]
[1744816571445,32.77281922,127.88,127.86,7.8213]
[1744816571651,32.77281922,127.88,127.85,0.05433521]
[1744816572146,32.77281922,127.88,127.86,7.8212]
[1744816572548,32.77281922,127.88,127.85,0.05433521]
[1744816572742,0.05281922,127.88,127.85,29.58588229]
[1744816572944,32.74,127.91,127.85,29.58588229]
[1744816573151,32.74,127.91,127.89,7.8193]
[1744816573947,0.05167989,127.91,127.89,0.0496586]
[1744816574151,32.74,127.93,127.89,0.0496586]
[1744816574352,29.53154708,127.97,127.93,7.817]
[1744816574554,32.74,127.96,127.93,7.817]
[1744816574748,32.74,127.95,127.93,7.817]
[1744816574955,32.74,127.95,127.92,7.8177]
[1744816575254,32.79808082,127.95,127.92,0.05923392]
[1744816575553,40.61468082,127.95,127.92,0.05923392]
[1744816575753,32.79808082,127.95,127.92,0.05923392]
[1744816575945,40.61438082,127.95,127.92,0.05923392]
[1744816576354,32.79808082,127.95,127.92,0.05923392]
[1744816576555,40.61418082,127.95,127.92,0.05923392]
[1744816577260,32.79808082,127.95,127.92,0.05923392]
[1744816577453,0.05808082,127.95,127.92,0.05923392]
[1744816577650,0.05808082,127.95,127.94,7.8167]
[1744816577854,32.74,127.99,127.92,0.05923392]
[1744816578053,32.74,127.99,127.92,1.9878]
[1744816578654,62.27154708,127.99,127.92,1.9878]
[1744816578852,0.05573171,127.97,127.94,0.05674989]
[1744816580255,0.05573171,127.97,127.95,7.8158]
[1744816581352,0.05573171,127.97,127.94,0.05674989]
[1744816581753,29.53154708,127.95,127.94,0.05674989]
[1744816582048,62.27154708,127.95,127.94,0.05674989]
[1744816582253,0.05573171,127.97,127.89,424.27154708]
[1744816582548,32.74,127.97,127.89,391.53154708]
[1744816583056,32.74,127.97,127.89,362.0]
[1744816583260,0.04993006,127.94,127.93,7.8172]
[1744816583659,0.04993006,127.94,127.92,0.05092574]
[1744816584455,0.04993006,127.94,127.93,7.8174]
[1744816585557,7.8174,127.93,127.92,0.05092574]
[1744816585761,40.5574,127.93,127.88,2.0076]
[1744816586262,7.8182,127.92,127.88,7.8202]
[1744816586655,7.8186,127.91,127.87,7.8207]
[1744816586959,0.05422362,127.91,127.89,0.05385465]
[1744816587159,7.8192,127.9,127.89,0.05385465]
[1744816587560,0.05422362,127.91,127.89,0.05385465]
[1744816588065,7.87302362,127.91,127.89,0.05385465]
[1744816588667,0.05422362,127.91,127.89,0.05385465]
[1744816591262,29.53154708,127.9,127.89,0.05385465]
[1744816591966,29.53154708,127.9,127.82,366.3051]
[1744816592166,32.74,127.89,127.82,366.3051]
[1744816592566,32.74,127.89,127.85,7.8218]
[1744816593163,32.79856338,127.88,127.86,0.04969679]
[1744816593366,32.79856338,127.88,127.82,362.0]
[1744816593367,62.33011046,127.88,127.82,362.0]
[1744816593567,29.53154708,127.86,127.81,2.1653]
[1744816594067,37.35334708,127.86,127.81,9.9897]
[1744816594271,32.74,127.85,127.81,9.9897]
[1744816594462,32.79266127,127.85,127.82,0.05939095]
[1744816595370,29.53154708,127.84,127.71,363.36134257]
[1744816595567,29.53154708,127.84,127.75,391.53154708]
[1744816595869,32.74,127.83,127.79,7.8254]
[1744816596071,32.74,127.83,127.75,391.53154708]
[1744816596270,32.74,127.83,127.81,7.8244]
[1744816596569,0.05670487,127.83,127.81,0.05946901]
[1744816596765,0.05670487,127.83,127.82,7.8241]
[1744816598368,0.05670487,127.83,127.81,7.88376901]
[1744816598570,0.05670487,127.83,127.81,0.05946901]
[1744816598972,0.05670487,127.83,127.82,7.8241]
[1744816600771,32.74,127.85,127.81,0.05946901]
[1744816600972,32.74,127.85,127.79,395.78064708]
[1744816601675,40.563,127.84,127.79,366.2491]
[1744816601874,0.05413785,127.83,127.81,7.87412365]
[1744816603769,32.74,127.84,127.81,0.04972365]
[1744816604269,592.67154708,127.9,127.81,0.04972365]
[1744816604478,32.74,127.89,127.84,29.53154708]
[1744816604667,32.74,127.89,127.85,2.195]
[1744816604866,32.74,127.89,127.88,7.8198]
[1744816605776,32.74,127.96,127.88,37.35154708]
[1744816605978,32.74,127.96,127.9,29.53154708]
[1744816606173,32.74,127.98,127.96,7.8152]
[1744816606379,32.74,127.98,127.92,29.53154708]
[1744816606673,32.74,127.98,127.91,2.195]
[1744816606870,0.05498426,127.96,127.95,7.8158]
[1744816607073,32.74,127.98,127.93,0.05616625]
[1744816607273,16.04355991,128.01,128.0,7.8131]
[1744816607969,16.04355991,128.01,127.99,7.8134]
[1744816608174,16.10274992,128.01,127.99,7.86401341]
[1744816608576,16.10274992,128.01,128.0,7.8131]
[1744816608776,16.10274992,128.01,127.99,0.05061341]
[1744816609178,16.10274992,128.01,128.0,7.8131]
[1744816609479,16.10274992,128.01,127.99,0.05061341]
[1744816609672,0.05919001,128.01,127.99,0.05061341]
[1744816609876,29.53154708,128.11,128.0,29.53154708]
[1744816610174,32.74,128.06,128.0,29.53154708]
[1744816610978,0.05517805,128.04,128.03,7.8112]
[1744816611178,32.74,128.09,128.02,29.58679604]
[1744816611374,32.74,128.08,127.99,29.53154708]
[1744816611571,29.53154708,128.06,127.97,364.0844]
[1744816612076,29.53154708,128.04,127.97,364.0844]
[1744816612379,29.53154708,128.0,127.9,987.35154708]
[1744816612678,40.5542,127.99,127.94,7.8164]
[1744816612879,32.74,127.99,127.91,2.0354]
[1744816613079,29.53154708,127.98,127.9,362.0]
[1744816613281,48.03349622,127.97,127.9,362.0]
[1744816613484,0.05758626,127.95,127.93,0.0534594]
[1744816613678,32.72,127.94,127.93,0.0534594]
[1744816614479,32.72,127.94,127.93,7.8708594]
[1744816616184,0.05758626,127.95,127.94,7.8167]
[1744816617181,32.72,128.0,127.93,0.0534594]
[1744816617485,32.72,128.0,127.94,48.03349622]
[1744816618087,32.72,128.0,127.99,7.8134]
[1744816618288,0.05471436,128.01,127.98,0.05712143]
[1744816618482,0.05527599,128.01,127.98,0.05070882]
[1744816620388,0.05527599,128.01,128.0,7.8131]
[1744816621691,32.72,128.04,128.03,7.8112]
[1744816621894,48.03349622,128.1,128.0,48.03349622]
[1744816622189,32.7,128.09,128.0,48.03349622]
[1744816622890,0.0597105,128.06,128.05,7.81]
[1744816623986,48.03349622,128.16,128.04,0.05886266]
[1744816623987,48.03349622,128.14,128.1,7.8067]
[1744816624193,32.7,128.13,128.1,7.8067]
[1744816624685,32.7,128.13,128.05,2.1893]
[1744816624686,32.7,128.13,128.12,7.8058]
[1744816626991,32.7,128.19,128.12,48.03349622]
[1744816627198,32.7,128.2,128.14,48.03349622]
[1744816627497,32.7,128.2,128.19,7.8015]
[1744816629096,32.7,128.2,128.18,7.85724442]
[1744816629497,32.7,128.2,128.18,0.05544442]
[1744816629794,0.05668831,128.21,128.18,48.08894064]
[1744816630193,0.05668831,128.21,128.18,0.05544442]
[1744816630897,0.05668831,128.21,128.19,7.8011]
[1744816631097,0.05668831,128.21,128.18,0.05544442]
[1744816631299,0.05668831,128.21,128.2,7.8009]
[1744816631691,32.68,128.26,128.2,7.8009]
[1744816631899,32.68,128.26,128.2,48.03349622]
[1744816632493,32.68,128.26,128.25,7.7978]
[1744816632790,32.68,128.3,128.24,48.03349622]
[1744816632993,568.4962,128.33,128.24,0.05838969]
[1744816633199,32.68,128.33,128.28,48.03349622]
[1744816633400,32.68,128.33,128.32,7.7936]
[1744816634403,32.68,128.33,128.31,0.05709464]
[1744816636204,32.68,128.33,128.32,7.7936]
[1744816636904,0.04933631,128.34,128.33,7.793]
[1744816638607,0.04933631,128.34,128.31,0.05709464]
[1744816639508,0.04933631,128.34,128.33,7.793]
[1744816640214,0.04933631,128.34,128.32,7.7934]
[1744816640614,0.04933631,128.34,128.31,0.05709464]
[1744816640915,32.64,128.41,128.33,48.03349622]
[1744816641116,32.64,128.41,128.35,48.03349622]
[1744816641709,32.64,128.41,128.39,7.7892]
[1744816641913,32.67643227,128.41,128.39,0.05166152]
[1744816642319,40.46493227,128.41,128.39,0.05166152]
[1744816642507,32.67643227,128.41,128.39,0.05166152]
[1744816642912,32.67643227,128.41,128.39,7.84086152]
[1744816643112,32.67643227,128.41,128.39,0.05166152]
[1744816643917,0.03643227,128.41,128.4,7.7887]
[1744816648022,32.64,128.44,128.43,7.7869]
[1744816648719,4.1664,128.47,128.45,7.7856]
[1744816648921,36.7864,128.47,128.39,48.03349622]
[1744816649123,34.7436,128.47,128.42,0.04939039]
[1744816649515,32.62,128.47,128.42,29.36406783]
[1744816649920,32.62,128.47,128.42,0.04939039]
[1744816650624,32.62,128.47,128.45,7.7857]
[1744816650826,32.62,128.47,128.45,7.83948246]
[1744816651020,32.62,128.47,128.45,0.05378246]
[1744816651220,32.62,128.47,128.42,7.7872]
[1744816651420,32.62,128.47,128.38,29.31467744]
[1744816651630,32.62,128.47,128.45,7.7851]
[1744816651927,32.62,128.47,128.4,29.31467744]
[1744816652130,32.62,128.47,128.44,7.7861]
[1744816652426,0.05378246,128.45,128.42,0.05949528]
[1744816652728,0.05378246,128.45,128.44,7.7863]
[1744816654423,32.62,128.47,128.46,7.7851]
[1744816654626,32.6,128.5,128.44,29.31467744]
[1744816655024,34.6491,128.53,128.46,29.31467744]
[1744816655229,32.6,128.53,128.46,29.31467744]
[1744816655626,32.6,128.53,128.5,7.7823]
[1744816655827,32.6,128.53,128.48,0.05251052]
[1744816656021,32.6,128.53,128.52,7.7815]
[1744816656620,32.6,128.59,128.52,29.31467744]